bitfinex/quotes_ETHUSD_20250916
["timestamp","ask_amount","ask_price","bid_price","bid_amount"]
[1758058452013,11.28046045,4503.9,4503.8,0.001]
[1758058452993,11.28046045,4503.9,4503.8,0.4749]
[1758058453390,11.28046045,4503.9,4503.8,0.7652]
[1758058453896,11.49316045,4503.9,4503.8,0.001]
[1758058454099,11.49314217,4503.9,4503.8,0.001]
[1758058455335,11.28044217,4503.9,4503.8,0.001]
[1758058457941,11.49124217,4503.9,4503.8,0.001]
[1758058458271,14.76113866,4503.9,4503.8,0.001]
[1758058458547,3.01254447,4503.4,4503.3,0.001]
[1758058458759,12.77259169,4503.4,4503.3,0.001]
[1758058458943,13.4612949,4503.4,4503.3,0.001]
[1758058459819,13.4850949,4503.4,4503.3,0.001]
[1758058460142,13.4612949,4503.4,4503.3,0.001]
[1758058460456,13.4850949,4503.4,4503.3,0.001]
[1758058461156,13.4612949,4503.4,4503.3,0.001]
[1758058461314,13.2523949,4503.4,4503.3,0.001]
[1758058464652,9.4963949,4503.4,4503.3,0.001]
[1758058464829,13.2493949,4503.4,4503.3,0.3103]
[1758058465036,13.2493949,4503.4,4503.3,0.7992]
[1758058467262,2.22069241,4503.1,4503.0,0.4424]
[1758058467456,2.22079104,4502.9,4502.8,0.001]
[1758058467763,9.51236995,4502.9,4502.8,0.001]
[1758058467967,9.51236995,4502.9,4502.8,0.7527]
[1758058469245,9.99122711,4502.9,4502.8,1.2416]
[1758058476857,9.99140324,4502.9,4502.8,1.2416]
[1758058477668,9.99146037,4502.9,4502.8,1.2416]
[1758058478789,9.51242708,4502.9,4502.8,1.2416]
[1758058478988,9.99154013,4502.9,4502.8,1.2416]
[1758058481199,9.99158559,4502.9,4502.8,1.2416]
[1758058483473,6.99158559,4502.9,4502.8,1.2416]
[1758058485274,6.51247254,4502.9,4502.8,1.2416]
[1758058487108,6.51252478,4502.9,4502.8,1.2416]
[1758058488105,0.54073374,4502.9,4502.8,1.2416]
[1758058488404,3.94696689,4502.9,4502.8,1.36576]
[1758058488972,0.20796689,4502.9,4502.8,1.36576]
[1758058489306,3.94696689,4502.9,4502.8,1.36576]
[1758058489770,3.739,4502.9,4502.8,1.36576]
[1758058491589,3.739,4502.9,4502.8,1.2416]
[1758058502641,0.1124,4503.3,4502.8,1.2416]
[1758058502642,3.736,4503.1,4502.8,1.352]
[1758058502809,3.738,4503.3,4502.9,0.02220791]
[1758058503137,3.738,4503.3,4503.2,0.2962]
[1758058503352,3.738,4503.3,4503.2,1.2423]
[1758058510313,0.002,4503.3,4503.2,1.36875079]
[1758058510647,0.002,4503.3,4503.2,3.69979388]
[1758058511427,0.002,4503.3,4503.2,3.72200031]
[1758058512449,0.002,4503.3,4503.2,1.50135722]
[1758058515034,0.002,4503.3,4503.2,3.72200031]
[1758058515856,0.002,4503.3,4503.2,4.38903088]
[1758058517158,0.002,4503.3,4503.2,2.16838779]
[1758058517731,0.002,4503.3,4503.2,4.38903088]
[1758058517932,0.002,4503.3,4503.2,2.16838779]
[1758058518734,0.002,4503.3,4503.2,4.38903088]
[1758058523053,0.002,4503.3,4503.2,5.18103088]
[1758058523354,0.002,4503.3,4503.2,5.15882445]
[1758058536781,0.2513,4504.1,4503.4,2.22050042]
[1758058536982,0.2513,4504.1,4503.5,4.48309744]
[1758058537296,0.4422,4504.2,4503.5,6.68136087]
[1758058537996,0.4422,4504.2,4503.5,7.12356087]
[1758058538190,0.4422,4504.2,4503.6,2.24264564]
[1758058538389,0.4422,4504.2,4503.7,3.734]
[1758058538590,0.4422,4504.2,4503.8,0.02220347]
[1758058538789,0.099,4503.9,4503.8,0.02220347]
[1758058546214,0.099,4503.9,4503.7,3.733]
[1758058546503,0.6901,4503.8,4503.7,3.733]
[1758058546696,0.1024,4503.8,4503.7,3.733]
[1758058546873,0.1024,4503.8,4503.7,3.8434]
[1758058550074,0.002,4503.9,4503.7,3.8434]
[1758058551666,0.1057,4503.8,4503.7,3.8434]
[1758058552186,0.002,4503.9,4503.7,3.8434]
[1758058554571,0.002,4503.9,4503.8,0.02220347]
[1758058562587,0.101,4503.9,4503.7,3.8434]
[1758058563436,0.101,4503.9,4503.8,0.02220347]
[1758058563734,0.002,4503.9,4503.8,0.02220347]
[1758058563942,0.002,4503.9,4503.8,0.02320347]
[1758058565323,0.002,4503.9,4503.8,0.31870347]
[1758058565510,0.002,4503.9,4503.8,0.95696254]
[1758058565707,0.002,4503.9,4503.8,1.89776254]
[1758058566309,0.002,4503.9,4503.8,1.25950347]
[1758058567205,0.002,4503.9,4503.8,0.02320347]
[1758058571052,0.101,4503.9,4503.8,0.001]
[1758058576257,0.002,4503.9,4503.8,0.001]
[1758058577651,0.002,4503.9,4503.8,0.02320347]
[1758058578855,0.002,4503.9,4503.8,0.001]
[1758058578856,0.101,4503.9,4503.8,0.001]
[1758058580560,0.002,4503.9,4503.8,0.001]
[1758058585466,0.1044,4503.9,4503.8,0.001]
[1758058585657,0.74802107,4503.9,4503.8,0.001]
[1758058585833,0.99932107,4503.9,4503.8,0.001]
[1758058586234,0.74802107,4503.9,4503.8,0.001]
[1758058586565,0.1044,4503.9,4503.8,0.001]
[1758058592465,0.002,4503.9,4503.8,0.3093]
[1758058597278,0.002,4503.9,4503.8,0.7948]
[1758058600255,0.002,4503.9,4503.8,1.2641]
[1758058602248,0.002,4503.9,4503.8,0.7948]
[1758058602747,0.002,4503.9,4503.8,1.2641]
[1758058602943,0.002,4503.9,4503.8,1.59926445]
[1758058603579,0.002,4503.9,4503.8,1.12996445]
[1758058605168,0.002,4503.9,4503.8,0.64446445]
[1758058605843,0.21025689,4503.9,4503.8,0.64446445]
[1758058606384,0.21025689,4503.9,4503.8,1.12996445]
[1758058607254,0.21025689,4503.9,4503.8,1.15216792]
[1758058607672,0.21025689,4503.9,4503.8,0.66666792]
[1758058608716,0.21025689,4503.9,4503.8,1.15216792]
[1758058610096,0.002,4503.9,4503.8,1.15216792]
[1758058611799,0.002,4503.9,4503.8,1.12996445]
[1758058612669,0.002,4503.9,4503.8,0.64446445]
[1758058613073,0.002,4503.9,4503.8,0.33616445]
[1758058616578,0.002,4503.9,4503.8,0.66376792]
[1758058616806,0.002,4503.9,4503.8,1.11446792]
[1758058617391,0.002,4503.9,4503.8,0.77930347]
[1758058618895,0.21025256,4503.9,4503.8,0.77930347]
[1758058619492,0.21025256,4503.9,4503.8,0.7571]
[1758058620613,0.21025256,4503.9,4503.8,0.3064]
[1758058621681,0.21025256,4503.9,4503.8,0.7571]
[1758058624618,0.21025256,4503.9,4503.8,0.3064]
[1758058628520,0.21025883,4503.9,4503.8,0.3064]
[1758058630223,0.21025883,4503.9,4503.8,0.7571]
[1758058646051,0.21025883,4503.9,4503.8,0.77930347]
[1758058647072,0.21025883,4503.9,4503.8,1.21800347]
[1758058654460,0.21026126,4503.9,4503.8,1.21800347]
[1758058656338,0.002,4503.9,4503.8,1.21800347]
[1758058662752,0.002,4503.9,4503.8,1.4262332]
[1758058663178,0.002,4503.9,4503.8,0.9875332]
[1758058667689,0.002,4503.9,4503.8,0.5368332]
[1758058680508,0.002,4503.9,4503.8,1.4665332]
[1758058680692,0.002,4503.9,4503.8,5.34102249]
[1758058681004,0.002,4503.9,4503.8,8.20841902]
[1758058681191,0.002,4503.9,4503.8,4.79037176]
[1758058681502,0.002,4503.9,4503.8,4.03862973]
[1758058685404,0.002,4503.9,4503.8,1.07892973]
[1758058685705,0.002,4503.9,4503.8,4.79692973]
[1758058686005,0.002,4503.9,4503.8,5.27092973]
[1758058686383,0.002,4503.9,4503.8,4.79692973]
[1758058686970,0.002,4503.9,4503.8,5.27092973]
[1758058697041,0.002,4503.9,4503.8,8.24040944]
[1758058697203,0.002,4503.9,4503.8,9.03240944]
[1758058704660,0.002,4503.9,4503.8,6.81206218]
[1758058704863,0.002,4503.9,4503.8,9.03240944]
[1758058706887,0.002,4503.9,4503.8,9.03040944]
[1758058711989,0.002,4503.9,4503.8,8.55640944]
[1758058712690,0.002,4503.9,4503.8,8.98560944]
[1758058717168,0.002,4503.9,4503.8,8.55640944]
[1758058717561,0.002,4503.9,4503.8,8.98560944]
[1758058718485,0.002,4503.9,4503.8,8.98360944]
[1758058720397,0.002,4503.9,4503.8,8.55440944]
[1758058720583,0.002,4503.9,4503.8,8.98360944]
[1758058722444,0.002,4503.9,4503.8,8.77537971]
[1758058722923,0.7932,4503.9,4503.8,3.8254]
[1758058723091,0.5652,4503.9,4503.8,3.84760347]
[1758058723295,0.3139,4503.9,4503.8,3.73720347]
[1758058723826,0.3139,4503.9,4503.8,3.715]
[1758058723993,0.3139,4503.9,4503.8,3.73720347]
[1758058724392,0.3139,4503.9,4503.8,5.95755073]
[1758058724596,0.101,4503.9,4503.8,3.715]
[1758058724791,0.101,4503.9,4503.8,5.95755073]
[1758058725013,0.101,4503.9,4503.8,5.93534726]
[1758058726331,0.101,4503.9,4503.8,5.93434726]
[1758058727513,0.002,4503.9,4503.8,5.93434726]
[1758058727912,0.002,4503.9,4503.8,6.23174726]
[1758058728313,0.002,4503.9,4503.8,8.74946642]
[1758058729024,0.002,4503.9,4503.8,8.32026642]
[1758058729226,0.002,4503.9,4503.8,8.74946642]
[1758058729802,0.002,4503.9,4503.8,8.32026642]
[1758058730032,0.002,4503.9,4503.8,7.86896642]
[1758058730234,0.002,4503.9,4503.8,8.74946642]
[1758058732007,0.002,4503.9,4503.8,7.86896642]
[1758058732542,0.002,4503.9,4503.8,8.32026642]
[1758058733205,0.002,4503.9,4503.8,8.85986642]
[1758058738643,0.002,4503.9,4503.8,8.43066642]
[1758058738809,0.002,4503.9,4503.8,8.47666642]
[1758058739010,0.002,4503.9,4503.8,8.94586642]
[1758058740342,0.101,4503.9,4503.8,3.8234]
[1758058740646,0.101,4503.9,4503.8,6.06595073]
[1758058740821,0.002,4503.9,4503.8,6.04374726]
[1758058742044,0.002,4503.9,4503.8,6.85344726]
[1758058742845,0.002,4503.9,4503.8,6.35614726]
[1758058743350,0.002,4503.9,4503.8,6.04374726]
[1758058743646,0.101,4503.9,4503.8,6.04374726]
[1758058743847,0.101,4503.9,4503.8,2.33174726]
[1758058744046,0.101,4503.9,4503.8,6.06495073]
[1758058744348,0.101,4503.9,4503.8,6.04274726]
[1758058746649,0.002,4503.9,4503.8,6.04274726]
[1758058751070,0.002,4503.9,4503.8,8.36829602]
[1758058751454,0.002,4503.9,4503.8,7.89909602]
[1758058751652,0.002,4503.9,4503.8,6.85244726]
[1758058753034,0.002,4503.9,4503.8,6.35514726]
[1758058755280,0.002,4503.9,4503.8,6.35414726]
[1758058758690,0.002,4503.9,4503.8,6.04174726]
[1758058758892,0.002,4503.9,4503.8,6.35414726]
[1758058763987,0.002,4503.9,4503.8,6.04174726]
[1758058765106,0.002,4503.9,4503.8,8.06944726]
[1758058765312,0.002,4503.9,4503.8,9.26903602]
[1758058767172,0.002,4503.9,4503.8,8.81613602]
[1758058775322,0.002,4503.9,4503.8,12.26903602]
[1758058775506,0.002,4503.9,4503.8,12.35794536]
[1758058778337,0.002,4503.9,4503.8,14.80200321]
[1758058780258,0.002,4503.9,4503.8,12.35794536]
[1758058790287,0.002,4503.9,4503.8,11.90504536]
[1758058790580,0.002,4503.9,4503.8,12.35794536]
[1758058791979,0.002,4503.9,4503.8,8.64794536]
[1758058792185,0.002,4503.9,4503.8,11.90104536]
[1758058793250,0.002,4503.9,4503.8,14.79800321]
[1758058793950,0.002,4503.9,4503.8,14.34510321]
[1758058794585,0.002,4503.9,4503.8,14.79580321]
[1758058795983,0.002,4503.9,4503.8,14.79480321]
[1758058799191,0.002,4503.9,4503.8,14.34410321]
[1758058800288,0.3096,4503.9,4503.8,3.84395595]
[1758058800483,0.3096,4503.9,4503.8,2.64436719]
[1758058800707,0.3096,4503.9,4503.8,6.0152566]
[1758058800923,0.3096,4503.9,4503.8,3.706]
[1758058801094,0.3096,4503.9,4503.8,3.72820347]
[1758058801490,0.3096,4503.9,4503.8,5.94855073]
[1758058801718,0.002,4503.9,4503.8,6.71834726]
[1758058801920,0.002,4503.9,4503.8,8.63810588]
[1758058802113,0.002,4503.9,4503.8,9.57240588]
[1758058802926,0.002,4503.9,4503.8,11.27840588]
[1758058809045,0.002,4503.9,4503.8,10.35050588]
[1758058809249,0.002,4503.9,4503.8,10.82770588]
[1758058810648,0.002,4503.9,4503.8,11.27840588]
[1758058810947,0.002,4503.9,4503.8,11.38880588]
[1758058815842,0.3096,4503.9,4503.8,10.16620588]
[1758058816177,0.002,4503.9,4503.8,10.16620588]
[1758058817173,0.002,4503.9,4503.8,12.61026373]
[1758058821250,0.002,4503.9,4503.8,12.90496373]
[1758058821469,0.002,4503.9,4503.8,13.38216373]
[1758058823682,0.002,4503.9,4503.8,13.83286373]
[1758058824878,0.002,4503.9,4503.8,13.38216373]
[1758058838612,0.002,4503.9,4503.8,12.90496373]
[1758058838811,0.002,4503.9,4503.8,11.75710511]
[1758058839578,0.002,4503.9,4503.8,12.22080511]
[1758058840914,0.002,4503.9,4503.8,11.75710511]
[1758058841583,0.002,4503.9,4503.8,11.46240511]
[1758058844322,0.002,4503.9,4503.8,11.76320511]
[1758058845186,0.002,4503.9,4503.8,13.55280916]
[1758058846929,0.002,4503.9,4503.8,14.01650916]
[1758058847623,0.002,4503.9,4503.8,13.55280916]
[1758058848926,0.002,4503.9,4503.8,11.46240511]
[1758058851016,0.101,4503.9,4503.8,7.75740511]
[1758058851197,0.101,4503.9,4503.8,11.45940511]
[1758058852699,0.002,4503.9,4503.8,11.45940511]
[1758058854934,0.002,4503.9,4503.8,2.44505785]
[1758058854935,0.1044,4503.9,4503.8,2.44505785]
[1758058855132,0.7911,4503.9,4503.8,6.14605785]
[1758058855443,0.7911,4503.9,4503.8,0.001]
[1758058855598,1.09243499,4503.9,4503.8,3.702]
[1758058860403,3.31273295,4503.9,4503.8,3.702]
[1758058860604,1.09243499,4503.9,4503.8,3.702]
[1758058861940,3.31273295,4503.9,4503.8,3.702]
[1758058862842,1.09243499,4503.9,4503.8,3.702]
[1758058863638,1.09243499,4503.9,4503.8,0.001]
[1758058863836,3.01139796,4503.9,4503.8,3.702]
[1758058871968,2.32469796,4503.9,4503.8,0.001]
[1758058872139,2.57599796,4503.9,4503.8,0.001]
[1758058872745,2.32469796,4503.9,4503.8,0.001]
[1758058872945,3.01139796,4503.9,4503.8,0.001]
[1758058873348,4.20182647,4503.9,4503.8,0.001]
[1758058875569,3.51512647,4503.9,4503.8,0.001]
[1758058876992,3.76642647,4503.9,4503.8,0.001]
[1758058879396,3.51512647,4503.9,4503.8,0.001]
[1758058884298,3.41272647,4503.9,4503.8,0.001]
[1758058885680,3.51842647,4503.9,4503.8,0.001]
[1758058885888,3.41272647,4503.9,4503.8,0.001]
[1758058886619,3.51842647,4503.9,4503.8,0.001]
[1758058888571,3.41272647,4503.9,4503.8,0.001]
[1758058889275,3.62081729,4503.9,4503.8,0.001]
[1758058898448,4.41001729,4503.9,4503.8,0.001]
[1758058899050,3.72781729,4503.9,4503.8,0.001]
[1758058900155,4.06091539,4503.9,4503.8,0.001]
[1758058902836,4.0610172,4503.9,4503.8,0.001]
[1758058903041,3.39395103,4503.9,4503.8,0.001]
[1758058904036,3.18576472,4503.9,4503.8,0.001]
[1758058904226,3.26902125,4503.9,4503.8,0.001]
[1758058905368,3.39392245,4503.9,4503.8,0.001]
[1758058905963,3.26902125,4503.9,4503.8,0.001]
[1758058906136,7.52282497,4503.9,4503.8,0.001]
[1758058906337,8.25375948,4503.9,4503.8,0.001]
[1758058906679,8.92090872,4503.9,4503.8,0.001]
[1758058908834,8.44127421,4503.9,4503.8,0.001]
[1758058909290,8.92070717,4503.9,4503.8,0.001]
[1758058910068,8.71253648,4503.9,4503.8,0.001]
[1758058910249,8.92060062,4503.9,4503.8,0.001]
[1758058910658,8.92034694,4503.9,4503.8,0.001]
[1758058911554,8.44091398,4503.9,4503.8,0.001]
[1758058913192,7.75871398,4503.9,4503.8,0.001]
[1758058914589,7.75867977,4503.9,4503.8,0.001]
[1758058915856,7.75867977,4503.9,4503.8,1.334]
[1758058916586,8.23785433,4503.9,4503.8,1.334]
[1758058917293,7.75867977,4503.9,4503.8,1.334]
[1758058918691,8.23784148,4503.9,4503.8,1.334]
[1758058919202,8.23784148,4503.9,4503.2,0.4525]
[1758058919203,2.22064309,4503.2,4503.1,0.001]
[1758058919365,6.45951332,4503.2,4503.1,0.001]
[1758058919566,6.56971332,4503.2,4503.1,0.001]
[1758058920516,7.47648965,4503.2,4503.1,0.001]
[1758058920721,8.73139108,4503.2,4503.1,0.001]
[1758058921225,8.73139248,4503.2,4503.1,0.001]
[1758058922296,11.25231615,4503.2,4503.1,0.001]
[1758058922500,11.73112147,4503.2,4503.1,0.001]
[1758058923421,11.25231615,4503.2,4503.1,0.001]
[1758058923915,10.57331615,4503.2,4503.1,0.001]
[1758058928044,10.57315073,4503.2,4503.1,0.001]
[1758058929938,10.57287069,4503.2,4503.1,0.001]
[1758058934348,10.57287069,4503.2,4503.1,1.2222]
[1758058934349,2.42868326,4503.2,4503.1,1.2222]
[1758058934539,0.002,4503.3,4503.1,1.2222]
[1758058934740,0.002,4503.3,4503.2,0.9167]
[1758058935348,0.002,4503.3,4503.2,1.2212]
[1758058935555,2.22259378,4503.3,4503.2,1.2212]
[1758058935760,0.002,4503.3,4503.2,1.35446]
[1758058935935,0.002,4503.3,4503.2,1.46486]
[1758058943487,0.002,4503.3,4503.2,1.48706643]
[1758058943686,0.002,4503.3,4503.2,7.49970952]
[1758058943884,0.002,4503.3,4503.2,7.47750309]
[1758058944184,0.002,4503.3,4503.2,7.56642488]
[1758058958504,0.002,4503.3,4503.2,11.26142488]
[1758058958706,0.5398,4503.3,4503.2,0.19932179]
[1758058958880,3.01169378,4503.3,4503.2,0.19932179]
[1758058959274,2.57289378,4503.3,4503.2,0.1104]
[1758058959774,3.01169378,4503.3,4503.2,0.1104]
[1758058964116,2.57289378,4503.3,4503.2,0.1104]
[1758058964323,0.101,4503.3,4503.2,0.1104]
[1758058965320,0.101,4503.3,4503.2,3.8054]
[1758058975935,0.002,4503.3,4503.2,3.8054]
[1758058980242,0.002,4503.3,4503.2,0.1104]
[1758058980438,0.002,4503.3,4503.2,3.8054]
[1758058984189,0.1044,4503.3,4503.1,3.695]
[1758058984552,2.32500807,4503.3,4503.1,3.695]
[1758058986361,0.1044,4503.3,4503.1,3.695]
[1758058986763,2.22064309,4503.2,4503.1,3.695]
[1758058986963,2.2226082,4503.3,4503.1,3.695]
[1758058988205,2.32634309,4503.2,4503.1,0.001]
[1758058988408,3.00974309,4503.2,4503.1,0.001]
[1758058988608,2.57764309,4503.2,4503.1,0.001]
[1758058988809,3.00974309,4503.2,4503.1,0.001]
[1758058990114,2.32634309,4503.2,4503.1,0.001]
[1758058990282,2.83363559,4503.2,4503.1,0.001]
[1758058992078,3.62743559,4503.2,4503.1,0.001]
[1758058993274,2.94403559,4503.2,4503.1,0.001]
[1758058995727,2.83833559,4503.2,4503.1,0.2938]
[1758058995931,2.22064309,4503.2,4503.1,0.2938]
[1758058996235,2.22064309,4503.2,4503.1,0.001]
[1758058999704,2.31964309,4503.2,4503.1,0.001]
[1758059000035,2.22064309,4503.2,4503.1,0.001]
[1758059007001,2.31964309,4503.2,4503.1,0.001]
[1758059007155,2.8373042,4503.2,4503.1,0.001]
[1758059007477,2.7383042,4503.2,4503.1,0.001]
[1758059007782,2.8373042,4503.2,4503.1,0.001]
[1758059010964,3.5274042,4503.2,4503.1,0.001]
[1758059011174,2.8373042,4503.2,4503.1,0.001]
[1758059016671,2.7383042,4503.2,4503.1,0.001]
[1758059020994,2.7383042,4503.2,4503.1,1.2333]
[1758059021184,2.22064309,4503.2,4503.1,1.2333]
[1758059021803,2.22064309,4503.2,4503.1,0.7806]
[1758059022220,2.22064309,4503.2,4503.1,0.001]
[1758059023019,2.22064309,4503.2,4503.1,0.3153]
[1758059023221,2.22064309,4503.2,4503.1,0.7806]
[1758059023587,2.22064309,4503.2,4503.1,0.3153]
[1758059024595,2.22064309,4503.2,4503.1,0.001]
[1758059025587,0.5651,4503.3,4503.1,0.3153]
[1758059025803,0.1124,4503.3,4503.2,0.918]
[1758059026009,0.5651,4503.3,4503.2,1.2323]
[1758059026346,0.5651,4503.3,4503.2,0.7796]
[1758059027135,2.78569378,4503.3,4503.2,1.2323]
[1758059027428,2.78569378,4503.3,4503.2,0.7796]
[1758059027649,0.5651,4503.3,4503.2,0.3143]
[1758059027871,0.002,4503.3,4503.2,7.24494309]
[1758059028047,0.002,4503.3,4503.2,9.34045908]
[1758059030942,0.002,4503.3,4503.2,13.03345908]
[1758059034057,0.002,4503.3,4503.2,12.24045908]
[1758059035737,0.002,4503.3,4503.2,13.03245908]
[1758059042666,0.002,4503.3,4503.2,10.81181599]
[1758059042863,0.002,4503.3,4503.2,10.35911599]
[1758059043179,0.002,4503.3,4503.2,8.43488774]
[1758059043383,0.002,4503.3,4503.2,8.52381783]
[1758059043583,0.101,4503.3,4503.2,3.19933009]
[1758059043736,0.101,4503.3,4503.2,3.1104]
[1758059043941,0.101,4503.3,4503.2,6.8024]
[1758059045039,0.101,4503.3,4503.2,0.1104]
[1758059045241,0.7911,4503.3,4503.2,3.8024]
[1758059045469,0.7911,4503.3,4503.2,0.1104]
[1758059045674,0.7911,4503.3,4503.2,3.8024]
[1758059046466,0.9015,4503.3,4503.2,3.8024]
[1758059048803,0.2114,4503.3,4503.2,3.8024]
[1758059052267,0.3999,4503.3,4503.2,3.8024]
[1758059052973,0.3995,4503.3,4503.2,3.8024]
[1758059053186,0.1124,4503.3,4503.2,3.8024]
[1758059053599,0.1124,4503.3,4503.2,3.68061352]
[1758059054199,0.1124,4503.3,4503.2,3.98121352]
[1758059054401,0.002,4503.3,4503.2,8.67106379]
[1758059054587,0.002,4503.3,4503.2,9.31577523]
[1758059055403,0.002,4503.3,4503.2,12.31577523]
[1758059069088,0.002,4503.3,4503.2,14.75983308]
[1758059075511,0.002,4503.3,4503.2,14.30123308]
[1758059076032,0.002,4503.3,4503.2,14.74073308]
[1758059077842,0.002,4503.3,4503.2,14.30123308]
[1758059079921,0.002,4503.3,4503.2,14.74073308]
[1758059080438,0.002,4503.3,4503.2,14.30123308]
[1758059080647,0.3005,4503.3,4503.2,11.07407523]
[1758059082440,0.002,4503.3,4503.2,11.07407523]
[1758059082743,0.002,4503.3,4503.2,11.36547523]
[1758059083239,0.002,4503.3,4503.2,10.69855736]
[1758059083412,0.002,4503.3,4503.2,11.17645736]
[1758059085240,0.002,4503.3,4503.2,12.88245736]
[1758059085614,0.002,4503.3,4503.2,12.40455736]
[1758059086341,0.002,4503.3,4503.2,12.11315736]
[1758059087039,0.002,4503.3,4503.2,12.40455736]
[1758059090713,0.002,4503.3,4503.2,12.29415736]
[1758059092534,0.002,4503.3,4503.2,12.77205736]
[1758059095215,0.002,4503.3,4503.2,12.29415736]
[1758059095851,0.002,4503.3,4503.2,14.73821521]
[1758059096544,0.002,4503.3,4503.2,15.19191521]
[1758059099586,0.002,4503.3,4503.2,14.73821521]
[1758059100774,0.002,4503.3,4503.2,14.84861521]
[1758059101834,0.002,4503.3,4503.2,15.73211521]
[1758059102064,0.002,4503.3,4503.2,12.62797212]
[1758059102268,0.1154,4503.3,4503.2,13.95371446]
[1758059102875,0.002,4503.3,4503.2,13.95371446]
[1758059103045,0.002,4503.3,4503.2,14.26021446]
[1758059103545,0.002,4503.3,4503.2,15.14371446]
[1758059105382,0.002,4503.3,4503.2,14.71391446]
[1758059105946,0.002,4503.3,4503.2,15.14371446]
[1758059106146,0.002,4503.3,4503.2,16.88915137]
[1758059106685,1e-08,4503.9,4503.8,3.01234726]
[1758059106885,0.01,4504.9,4503.8,3.01234726]
[1758059106886,0.01,4504.9,4504.5,3.01200222]
[1758059107051,1e-08,4504.9,4504.8,6.01185437]
[1758059107374,0.01,4506.9,4505.8,3.01136171]
[1758059107575,0.01,4506.9,4505.8,8.73605532]
[1758059107781,0.01,4506.9,4505.8,9.16756171]
[1758059108079,0.5477,4506.8,4505.8,9.70904124]
[1758059109550,0.5477,4506.8,4505.8,7.48967953]
[1758059109773,2.76660164,4506.8,4505.8,9.70904124]
[1758059110083,0.5477,4506.8,4505.8,9.70904124]
[1758059110261,2.2189206,4506.7,4505.8,9.70904124]
[1758059110461,2.76657496,4506.8,4505.8,9.70904124]
[1758059110949,2.76657496,4506.8,4505.8,10.14274157]
[1758059111150,2.21893264,4506.7,4505.8,10.14274157]
[1758059112183,0.1294,4505.9,4505.8,10.14274157]
[1758059112695,0.01,4505.9,4505.8,10.14274157]
[1758059112887,0.01,4505.9,4505.8,13.44924157]
[1758059116464,0.01,4505.9,4505.8,15.89329942]
[1758059116791,0.01,4505.9,4505.8,16.00369942]
[1758059119890,0.1294,4505.9,4505.8,8.56213738]
[1758059120200,0.1294,4505.9,4505.8,11.06845785]
[1758059120400,0.1294,4505.9,4505.8,13.16781956]
[1758059122400,0.1294,4505.9,4505.8,10.72376171]
[1758059123709,0.3807,4505.9,4505.8,4.8164]
[1758059123905,0.8053,4505.9,4505.8,1.8164]
[1758059124109,3.32706429,4505.9,4505.8,5.5044]
[1758059124292,3.02461245,4505.9,4505.8,5.5044]
[1758059126400,3.02461245,4505.9,4505.8,1.8164]
[1758059126577,3.02461245,4505.9,4505.8,5.5044]
[1758059128320,3.02461245,4505.9,4505.8,1.706]
[1758059128498,3.02461245,4505.9,4505.8,5.394]
[1758059128499,3.54899795,4505.9,4505.8,5.394]
[1758059128819,3.54899795,4505.9,4505.4,0.1104]
[1758059128820,1.3296855,4505.9,4505.4,0.1104]
[1758059128984,2.21950948,4505.5,4505.2,0.1104]
[1758059129189,2.21950948,4505.5,4505.3,3.688]
[1758059129389,0.7971,4505.4,4505.3,3.688]
[1758059129587,0.3123,4505.4,4505.3,3.688]
[1758059129905,0.7971,4505.4,4505.3,3.688]
[1758059130420,0.3123,4505.4,4505.3,3.688]
[1758059131326,0.7971,4505.4,4505.3,3.688]
[1758059131838,0.3123,4505.4,4505.3,3.688]
[1758059132316,0.1204,4505.9,4505.3,3.9782]
[1758059132619,0.01,4505.9,4505.4,0.02219558]
[1758059132782,0.01,4505.9,4505.6,0.1104]
[1758059132990,0.01,4505.9,4505.7,3.688]
[1758059133395,0.01,4505.9,4505.8,0.2902]
[1758059133823,0.01,4505.9,4505.8,0.7645]
[1758059134007,0.01,4505.9,4505.8,0.31239361]
[1758059134196,0.01,4505.9,4505.8,3.49626532]
[1758059134523,0.01,4505.9,4505.8,3.94586532]
[1758059135431,0.01,4505.9,4505.8,1.25471]
[1758059135837,0.01,4505.9,4505.8,1.70431]
[1758059136034,0.01,4505.9,4505.8,1.2141]
[1758059136404,0.01,4505.9,4505.8,3.45565532]
[1758059136905,0.01,4505.9,4505.8,3.43346171]
[1758059137232,0.01,4505.9,4505.8,0.7645]
[1758059139150,0.109,4505.9,4505.5,2.44405785]
[1758059139349,2.32831318,4505.9,4505.5,2.44405785]
[1758059139548,2.57961318,4505.9,4505.5,2.44405785]
[1758059139721,2.32831318,4505.9,4505.6,3.693]
[1758059140046,0.109,4505.9,4505.6,3.693]
[1758059140342,0.696,4505.8,4505.6,3.7151946]
[1758059140503,0.1025,4505.7,4505.6,3.7151946]
[1758059142242,0.01,4505.9,4505.6,3.7151946]
[1758059142800,0.1058,4505.7,4505.6,0.0221946]
[1758059143005,0.1058,4505.7,4505.6,3.7151946]
[1758059144018,0.1058,4505.7,4505.6,3.8255946]
[1758059144441,0.01,4505.9,4505.6,3.8255946]
[1758059144642,0.01,4505.9,4505.7,3.692]
[1758059145010,0.1092,4505.8,4505.7,3.692]
[1758059146540,0.01,4505.9,4505.7,3.692]
[1758059147827,0.01,4505.9,4505.7,4.1663]
[1758059148708,0.01,4505.9,4505.8,0.2902]
[1758059148914,0.01,4505.9,4505.8,0.7645]
[1758059149840,0.01,4505.9,4505.8,0.2902]